fUST/lending_fUST_20250626
["ID","MTS","AMOUNT","RATE_DAILY","PERIOD"]
[367619495,1750877443600,-460.0,0.00016986,2]
[367619496,1750877443610,-460.0,0.00016986,2]
[367619497,1750877443621,-460.0,0.00016986,2]
[367619498,1750877443631,-562.95656461,0.00016986,2]
[367619499,1750877443641,-460.0,0.00016986,2]
[367619500,1750877443651,-460.0,0.00016986,2]
[367619501,1750877443660,-460.0,0.00016986,2]
[367619502,1750877443670,-460.0,0.00016986,2]
[367619503,1750877443680,-795.72,0.00016986,2]
[367619504,1750877443690,-460.0,0.00016986,2]
[367619505,1750877443699,-460.0,0.00016986,2]
[367619506,1750877443709,-460.0,0.00016986,2]
[367619507,1750877443719,-460.0,0.00016986,2]
[367619508,1750877443728,-460.0,0.00016986,2]
[367619509,1750877443738,-460.0,0.00016986,2]
[367619510,1750877443747,-460.0,0.00016986,2]
[367619511,1750877443757,-460.0,0.00016986,2]
[367619512,1750877443767,-460.0,0.00016986,2]
[367619513,1750877443777,-597.1,0.00016986,2]
[367619514,1750877443786,-608.18,0.00016986,2]
[367619515,1750877443795,-460.0,0.00016986,2]
[367619516,1750877443805,-460.0,0.00016986,2]
[367619517,1750877443815,-1064.04,0.00016986,2]
[367619518,1750877443824,-460.0,0.00016986,2]
[367619519,1750877443834,-460.0,0.00016986,2]
[367619520,1750877443843,-2140.62,0.00016986,2]
[367619521,1750877443854,-460.0,0.00016986,2]
[367619522,1750877443864,-785.0,0.00016986,2]
[367619523,1750877443874,-460.0,0.00016986,2]
[367619524,1750877443884,-460.0,0.00016986,2]
[367619525,1750877443893,-4129.16,0.00016986,2]
[367619526,1750877443903,-460.0,0.00016986,2]
[367619527,1750877443913,-151.91108872,0.00016986,2]
[367619528,1750877443923,-1521.43,0.00016986,2]
[367619529,1750877443933,-1999.61,0.00016986,2]
[367619530,1750877443945,-460.0,0.00016986,2]
[367619531,1750877443956,-582.13,0.00016986,2]
[367619532,1750877443965,-460.0,0.00016986,2]
[367619533,1750877443975,-460.0,0.00016986,2]
[367619534,1750877443985,-680.21,0.00016986,2]
[367619535,1750877443994,-508.55,0.00016986,2]
[367619536,1750877444004,-460.0,0.00016986,2]
[367619537,1750877444013,-915.74,0.00016986,2]
[367619538,1750877444022,-616.37,0.00016986,2]
[367619539,1750877444031,-460.0,0.00016986,2]
[367619540,1750877444041,-490.31,0.00016986,2]
[367619541,1750877444051,-460.0,0.00016986,2]
[367619542,1750877444060,-460.0,0.00016986,2]
[367619543,1750877444069,-536.65,0.00016986,2]
[367619544,1750877444079,-460.0,0.00016986,2]
[367619545,1750877444088,-1074.84,0.00016986,2]
[367619546,1750877444099,-245.86945585,0.00016986,2]
[367619547,1750877444109,-460.0,0.00016986,2]
[367619548,1750877444118,-460.0,0.00016986,2]
[367619549,1750877444128,-460.0,0.00016986,2]
[367619550,1750877444137,-247.06,0.00016986,2]
[367619551,1750877444147,-460.0,0.00016986,2]
[367619552,1750877444157,-1383.38,0.00016986,2]
[367619553,1750877444167,-1889.89,0.00016986,2]
[367619554,1750877444176,-460.0,0.00016986,2]
[367619555,1750877444186,-3898.37,0.00016986,2]
[367619556,1750877444199,-460.0,0.00016986,2]
[367619557,1750877444209,-460.0,0.00016986,2]
[367619558,1750877444220,-502.38,0.00016986,2]
[367619559,1750877444231,-460.0,0.00016986,2]
[367619560,1750877444241,-460.0,0.00016986,2]
[367619561,1750877444251,-520.16,0.00016986,2]
[367619562,1750877444260,-500.81,0.00016986,2]
[367619563,1750877444270,-460.0,0.00016986,2]
[367619564,1750877444279,-460.0,0.00016986,2]
[367619565,1750877444290,-460.0,0.00016986,2]
[367619566,1750877444299,-460.0,0.00016986,2]
[367619567,1750877444309,-460.0,0.00016986,2]
[367619568,1750877444319,-554.76,0.00016986,2]
[367619569,1750877444328,-460.0,0.00016986,2]
[367619570,1750877444338,-561.13682606,0.00016986,2]
[367619571,1750877444348,-1774.78,0.00016986,2]
[367619572,1750877444358,-919.71,0.00016986,2]
[367619573,1750877444368,-914.32,0.00016986,2]
[367619574,1750877444377,-1382.86,0.00016986,2]
[367619575,1750877444387,-460.0,0.00016986,2]
[367619576,1750877444396,-1603.75,0.00016986,2]
[367619577,1750877444406,-1011.24,0.00016986,2]
[367619578,1750877444415,-1958.91,0.00016986,2]
[367619579,1750877444426,-460.0,0.00016986,2]
[367619580,1750877444436,-749.81,0.00016986,2]
[367619581,1750877444445,-460.0,0.00016986,2]
[367619582,1750877444455,-527.1,0.00016986,2]
[367619583,1750877444465,-2383.52,0.00016986,2]
[367619584,1750877444474,-652.94,0.00016986,2]
[367619585,1750877444483,-243.84,0.00016986,2]
[367619586,1750877444493,-460.0,0.00016986,2]
[367619587,1750877444503,-465.06,0.00016986,2]
[367619588,1750877444513,-2133.96,0.00016986,2]
[367619589,1750877444522,-460.0,0.00016986,2]
[367619590,1750877444531,-460.0,0.00016986,2]
[367619591,1750877444541,-224.63,0.00016986,2]
[367619592,1750877444550,-461.96,0.00016986,2]
[367619593,1750877444560,-460.0,0.00016986,2]
[367619594,1750877444570,-460.0,0.00016986,2]
[367619595,1750877444579,-460.0,0.00016986,2]
[367619596,1750877444588,-702.11,0.00016986,2]
[367619597,1750877444598,-518.51,0.00016986,2]
[367619598,1750877444608,-207.4,0.00017,2]
[367619599,1750877444617,-160.0,0.0001705,2]
[367619600,1750877444626,-160.0,0.0001705,2]
[367619601,1750877444636,-160.0,0.0001705,2]
[367619602,1750877444646,-12558.06783089,0.0001705,2]
[367619603,1750877444656,-230.22714675,0.0001705,2]
[367619604,1750877444666,-160.0,0.0001705,2]
[367619605,1750877444676,-836.86812089,0.0001705,2]
[367619606,1750877444687,-160.0,0.0001705,2]
[367619607,1750877444696,-213.69531788,0.0001705,2]
[367619608,1750877444706,-846.80634355,0.0001705,2]
[367619609,1750877444715,-425.18553072,0.0001705,2]
[367619610,1750877444725,-160.0,0.00017053,2]
[367619611,1750877444734,-160.0,0.00017053,2]
[367619612,1750877444744,-502.40315064,0.00017113,2]
[367619613,1750877444753,-500.0,0.00017113,2]
[367619614,1750877444763,-500.0,0.00017113,2]
[367619615,1750877444773,-500.0,0.0001712,2]
[367619616,1750877444784,-500.0,0.0001712,2]
[367619617,1750877444794,-500.0,0.0001712,2]
[367619618,1750877444804,-512.51280788,0.0001712,2]
[367619619,1750877444813,-500.0,0.0001712,2]
[367619620,1750877444824,-500.0,0.0001712,2]
[367619621,1750877444834,-500.0,0.0001712,2]
[367619622,1750877444844,-500.0,0.0001712,2]
[367619623,1750877444854,-500.0,0.0001712,2]
[367619624,1750877444865,-500.0,0.0001712,2]
[367619625,1750877444875,-500.0,0.0001712,2]
[367619626,1750877444885,-500.0,0.0001712,2]
[367619627,1750877444895,-502.89171688,0.0001712,2]
[367619628,1750877444905,-506.37154004,0.0001712,2]
[367619629,1750877444914,-225.48016869,0.00017135,2]
[367619630,1750877444923,-500.0,0.00017135,2]
[367619631,1750877444932,-500.0,0.00017139,2]
[367619632,1750877444941,-500.0,0.00017139,2]
[367619633,1750877444950,-500.0,0.00017144,2]
[367619634,1750877444960,-500.0,0.00017144,2]
[367619635,1750877444969,-500.0,0.00017144,2]
[367619636,1750877444979,-500.0,0.00017146,2]
[367619637,1750877444987,-500.0,0.00017146,2]
[367619638,1750877444997,-500.0,0.00017159,2]
[367619639,1750877445006,-500.0,0.00017159,2]
[367619640,1750877445015,-500.87736512,0.00017159,2]
[367619641,1750877445025,-500.0,0.00017159,2]
[367619642,1750877445034,-500.0,0.00017159,2]
[367619643,1750877445044,-1097.15699883,0.0001716,2]
[367619644,1750877445053,-500.0,0.00017184,2]
[367619645,1750877445062,-500.0,0.00017213,2]
[367619646,1750877445070,-500.0,0.00017213,2]
[367619647,1750877445080,-460.0,0.0001726,2]
[367619648,1750877445089,-460.0,0.0001726,2]
[367619649,1750877445098,-388.29380244,0.0001726,2]
[367619650,1750877445107,-460.0,0.0001726,2]
[367619651,1750877445116,-474.35,0.0001726,2]
[367619652,1750877445125,-460.0,0.0001726,2]
[367619653,1750877445134,-460.0,0.0001726,2]
[367619654,1750877445143,-460.0,0.0001726,2]
[367619655,1750877445152,-460.0,0.0001726,2]
[367619656,1750877445161,-460.0,0.0001726,2]
[367619657,1750877445170,-460.0,0.0001726,2]
[367619658,1750877445179,-575.93,0.0001726,2]
[367619659,1750877445189,-460.0,0.0001726,2]
[367619660,1750877445199,-460.0,0.0001726,2]
[367619661,1750877445208,-157.58,0.0001726,2]
[367619662,1750877445218,-460.0,0.0001726,2]
[367619663,1750877445227,-625.58,0.0001726,2]
[367619664,1750877445237,-460.0,0.0001726,2]
[367619665,1750877445246,-460.0,0.0001726,2]
[367619666,1750877445255,-460.0,0.0001726,2]
[367619668,1750877445264,-460.0,0.0001726,2]
[367619670,1750877445274,-460.0,0.0001726,2]
[367619671,1750877445284,-460.0,0.0001726,2]
[367619673,1750877445293,-460.0,0.0001726,2]
[367619675,1750877445302,-417.03,0.0001726,2]
[367619676,1750877445311,-460.0,0.0001726,2]
[367619677,1750877445320,-460.0,0.0001726,2]
[367619678,1750877445328,-460.0,0.0001726,2]
[367619679,1750877445338,-460.0,0.0001726,2]
[367619680,1750877445347,-795.72,0.0001726,2]
[367619681,1750877445357,-198.98,0.0001726,2]
[367619682,1750877445366,-460.0,0.0001726,2]
[367619684,1750877445375,-460.0,0.0001726,2]
[367619686,1750877445386,-445.88,0.0001726,2]
[367619687,1750877445395,-460.0,0.0001726,2]
[367619688,1750877445404,-460.0,0.0001726,2]
[367619689,1750877445414,-460.0,0.0001726,2]
[367619690,1750877445423,-460.0,0.0001726,2]
[367619691,1750877445433,-460.0,0.0001726,2]
[367619692,1750877445443,-597.1,0.0001726,2]
[367619693,1750877445453,-460.0,0.0001726,2]
[367619694,1750877445462,-460.0,0.0001726,2]
[367619695,1750877445471,-1064.04,0.0001726,2]
[367619696,1750877445481,-460.0,0.0001726,2]
[367619697,1750877445490,-460.0,0.0001726,2]
[367619698,1750877445500,-2140.62,0.0001726,2]
[367619699,1750877445510,-460.0,0.0001726,2]
[367619700,1750877445519,-785.0,0.0001726,2]
[367619701,1750877445529,-460.0,0.0001726,2]
[367619702,1750877445539,-182.25,0.0001726,2]
[367619703,1750877445548,-4129.16,0.0001726,2]
[367619704,1750877445558,-460.0,0.0001726,2]
[367619705,1750877445567,-1521.43,0.0001726,2]
[367619706,1750877445577,-1999.61,0.0001726,2]
[367619707,1750877445586,-460.0,0.0001726,2]
[367619708,1750877445595,-460.0,0.0001726,2]
[367619709,1750877445606,-254.86,0.0001726,2]
[367619710,1750877445616,-680.21,0.0001726,2]
[367619711,1750877445626,-508.55,0.0001726,2]
[367619712,1750877445635,-460.0,0.0001726,2]
[367619713,1750877445645,-915.74,0.0001726,2]
[367619714,1750877445654,-616.37,0.0001726,2]
[367619715,1750877445664,-490.31,0.0001726,2]
[367619716,1750877445673,-460.0,0.0001726,2]
[367619717,1750877445683,-460.0,0.0001726,2]
[367619718,1750877445827,-536.65,0.0001726,2]
[367619719,1750877445837,-460.0,0.0001726,2]
[367619720,1750877445847,-1074.84,0.0001726,2]
[367619721,1750877445857,-526.06,0.0001726,2]
[367619722,1750877445866,-501.85,0.0001726,2]
[367619723,1750877445875,-460.0,0.0001726,2]
[367619724,1750877445885,-460.0,0.0001726,2]
[367619725,1750877445894,-1383.38,0.0001726,2]
[367619726,1750877445904,-1889.89,0.0001726,2]
[367619727,1750877445913,-460.0,0.0001726,2]
[367619728,1750877445923,-3898.37,0.0001726,2]
[367619729,1750877445933,-460.0,0.0001726,2]
[367619730,1750877445943,-460.0,0.0001726,2]
[367619731,1750877445952,-502.38,0.0001726,2]
[367619732,1750877445962,-545.46803184,0.0001726,2]
[367619733,1750877445971,-460.0,0.0001726,2]
[367619734,1750877445981,-460.0,0.0001726,2]
[367619735,1750877445990,-460.0,0.0001726,2]
[367619736,1750877446000,-460.0,0.0001726,2]
[367619737,1750877446009,-460.0,0.0001726,2]
[367619738,1750877446018,-554.76,0.0001726,2]
[367619739,1750877446028,-460.0,0.0001726,2]
[367619740,1750877446037,-1774.78,0.0001726,2]
[367619741,1750877446047,-919.71,0.0001726,2]
[367619742,1750877446057,-914.32,0.0001726,2]
[367619743,1750877446066,-1382.86,0.0001726,2]
[367619744,1750877446076,-460.0,0.0001726,2]
[367619745,1750877446086,-1603.75,0.0001726,2]
[367619746,1750877446095,-1011.24,0.0001726,2]
[367619747,1750877446105,-1958.91,0.0001726,2]
[367619748,1750877446115,-460.0,0.0001726,2]
[367619749,1750877446124,-749.81,0.0001726,2]
[367619750,1750877446134,-460.0,0.0001726,2]
[367619751,1750877446144,-527.1,0.0001726,2]
[367619752,1750877446153,-2383.52,0.0001726,2]
[367619753,1750877446163,-652.94,0.0001726,2]
[367619754,1750877446173,-465.06,0.0001726,2]
[367619755,1750877446182,-2133.96,0.0001726,2]
[367619756,1750877446195,-460.0,0.0001726,2]
[367619757,1750877446205,-460.0,0.0001726,2]
[367619758,1750877446215,-515.56,0.0001726,2]
[367619759,1750877446224,-460.0,0.0001726,2]
[367619760,1750877446234,-702.11,0.0001726,2]
[367619761,1750877446244,-518.51,0.0001726,2]
[367619762,1750877446253,-500.0,0.00017416,2]
[367619763,1750877446263,-177.3826656,0.0001742,2]
[367619764,1750877446275,-177.4156324,0.00017425,2]
[367619765,1750877446284,-354.8312648,0.00017425,2]
[367619766,1750877446294,-177.2837652,0.00017425,2]
[367619767,1750877446304,-262.0,0.00017461,2]
[367619768,1750877446314,-172.68913135,0.00017534,2]
[367619769,1750877446323,-151.0,0.00017534,2]
[367619770,1750877446333,-151.0,0.00017534,2]
[367619771,1750877446342,-460.08,0.00017534,2]
[367619772,1750877446352,-151.0,0.00017534,2]
[367619773,1750877446362,-398.12231248,0.00017534,2]
[367619774,1750877446371,-541.22,0.00017534,2]
[367619775,1750877446381,-460.0,0.00017534,2]
[367619776,1750877446391,-159.76,0.00017534,2]
[367619777,1750877446401,-183.29,0.00017534,2]
[367619778,1750877446411,-575.93,0.00017534,2]
[367619779,1750877446421,-460.0,0.00017534,2]
[367619780,1750877446431,-460.0,0.00017534,2]
[367619781,1750877446441,-460.0,0.00017534,2]
[367619782,1750877446450,-625.58,0.00017534,2]
[367619783,1750877446460,-460.0,0.00017534,2]
[367619784,1750877446469,-243.9,0.00017534,2]
[367619785,1750877446479,-460.0,0.00017534,2]
[367619786,1750877446487,-460.0,0.00017534,2]
[367619787,1750877446496,-235.22,0.00017534,2]
[367619788,1750877446505,-460.0,0.00017534,2]
[367619789,1750877446515,-460.0,0.00017534,2]
[367619790,1750877446524,-460.0,0.00017534,2]
[367619791,1750877446534,-460.0,0.00017534,2]
[367619792,1750877446543,-460.0,0.00017534,2]
[367619793,1750877446552,-795.72,0.00017534,2]
[367619794,1750877446562,-460.0,0.00017534,2]
[367619795,1750877446571,-460.0,0.00017534,2]
[367619796,1750877446582,-460.0,0.00017534,2]
[367619797,1750877446591,-460.0,0.00017534,2]
[367619798,1750877446601,-460.0,0.00017534,2]
[367619799,1750877446610,-202.73,0.00017534,2]
[367619800,1750877446620,-539.60067752,0.00017534,2]
[367619801,1750877446629,-597.1,0.00017534,2]
[367619802,1750877446639,-460.0,0.00017534,2]
[367619803,1750877446648,-460.0,0.00017534,2]
[367619804,1750877446657,-1064.04,0.00017534,2]
[367619805,1750877446666,-460.0,0.00017534,2]
[367619806,1750877446676,-2140.62,0.00017534,2]
[367619807,1750877446686,-460.0,0.00017534,2]
[367619808,1750877446695,-785.0,0.00017534,2]
[367619809,1750877446704,-460.0,0.00017534,2]
[367619810,1750877446713,-4129.16,0.00017534,2]
[367619811,1750877446722,-460.0,0.00017534,2]
[367619812,1750877446732,-1521.43,0.00017534,2]
[367619813,1750877446741,-1999.61,0.00017534,2]
[367619814,1750877446750,-460.0,0.00017534,2]
[367619815,1750877446759,-680.21,0.00017534,2]
[367619816,1750877446769,-508.55,0.00017534,2]
[367619817,1750877446778,-460.0,0.00017534,2]
[367619818,1750877446788,-915.74,0.00017534,2]
[367619819,1750877446797,-616.37,0.00017534,2]
[367619820,1750877446806,-460.0,0.00017534,2]
[367619821,1750877446816,-490.31,0.00017534,2]
[367619822,1750877446825,-460.0,0.00017534,2]
[367619823,1750877446834,-536.65,0.00017534,2]
[367619824,1750877446844,-1074.84,0.00017534,2]
[367619825,1750877446854,-460.0,0.00017534,2]
[367619826,1750877446863,-460.0,0.00017534,2]
[367619827,1750877446872,-1383.38,0.00017534,2]
[367619828,1750877446882,-1889.89,0.00017534,2]
[367619829,1750877446891,-460.0,0.00017534,2]
[367619830,1750877446900,-3898.37,0.00017534,2]
[367619831,1750877446910,-460.0,0.00017534,2]
[367619832,1750877446919,-460.0,0.00017534,2]
[367619833,1750877446928,-502.38,0.00017534,2]
[367619834,1750877446938,-460.0,0.00017534,2]
[367619835,1750877446947,-460.0,0.00017534,2]
[367619836,1750877446956,-460.0,0.00017534,2]
[367619837,1750877446966,-242.12970165,0.00017534,2]
[367619838,1750877446975,-460.0,0.00017534,2]
[367619839,1750877446984,-554.76,0.00017534,2]
[367619840,1750877446994,-460.0,0.00017534,2]
[367619841,1750877447003,-1774.78,0.00017534,2]
[367619842,1750877447012,-919.71,0.00017534,2]
[367619843,1750877447021,-914.32,0.00017534,2]
[367619844,1750877447030,-1382.86,0.00017534,2]
[367619845,1750877447038,-460.0,0.00017534,2]
[367619846,1750877447047,-1603.75,0.00017534,2]
[367619847,1750877447056,-1011.24,0.00017534,2]
[367619848,1750877447065,-1958.91,0.00017534,2]
[367619849,1750877447074,-460.0,0.00017534,2]
[367619850,1750877447085,-749.81,0.00017534,2]
[367619851,1750877447094,-333.20912759,0.00017534,2]
[367619852,1750877447104,-527.1,0.00017534,2]
[367619853,1750877447113,-2383.52,0.00017534,2]
[367619854,1750877447122,-652.94,0.00017534,2]
[367619855,1750877447132,-465.06,0.00017534,2]
[367619856,1750877447142,-2133.96,0.00017534,2]
[367619857,1750877447151,-460.0,0.00017534,2]
[367619858,1750877447160,-460.0,0.00017534,2]
[367619859,1750877447169,-460.0,0.00017534,2]
[367619860,1750877447178,-702.11,0.00017534,2]
[367619861,1750877447188,-518.51,0.00017534,2]
[367619862,1750877447200,-307.0,0.00017606,2]
[367619863,1750877447210,-1000.0,0.00017661,2]
[367619864,1750877447219,-500.0,0.00017668,2]
[367619865,1750877447229,-1000.0,0.00017668,2]
[367619866,1750877447240,-1000.0,0.00017683,2]
[367619867,1750877447249,-1000.0,0.00017692,2]
[367619868,1750877447259,-500.0,0.00017692,2]
[367619869,1750877447268,-500.0,0.00017694,2]
[367619870,1750877447279,-1000.0,0.00017707,2]
[367619871,1750877447289,-1097.15699883,0.00017708,2]
[367619872,1750877447299,-500.0,0.00017732,2]
[367619873,1750877447307,-174.69466745,0.0001776,2]
[367619874,1750877447317,-906.9,0.00017798,3]
[367619875,1750877447326,-453.44,0.00017798,3]
[367619876,1750877447335,-151.0,0.00017808,2]
[367619877,1750877447344,-252.125982,0.00017808,2]
[367619878,1750877447354,-151.0,0.00017808,2]
[367619879,1750877447363,-314.19749,0.00017808,2]
[367619880,1750877447373,-314.19749,0.00017808,2]
[367619881,1750877447382,-575.93,0.00017808,2]
[367619882,1750877447391,-460.0,0.00017808,2]
[367619883,1750877447400,-460.0,0.00017808,2]
[367619884,1750877447409,-558.41944309,0.00017808,2]
[367619885,1750877447419,-625.58,0.00017808,2]
[367619886,1750877447428,-460.0,0.00017808,2]
[367619887,1750877447438,-460.0,0.00017808,2]
[367619888,1750877447447,-460.0,0.00017808,2]
[367619889,1750877447457,-230.13,0.00017808,2]
[367619890,1750877447466,-460.0,0.00017808,2]
[367619891,1750877447476,-151.0,0.00017808,2]
[367619892,1750877447486,-460.0,0.00017808,2]
[367619893,1750877447495,-460.0,0.00017808,2]
[367619894,1750877447505,-460.0,0.00017808,2]
[367619895,1750877447514,-795.72,0.00017808,2]
[367619896,1750877447524,-460.0,0.00017808,2]
[367619897,1750877447534,-460.0,0.00017808,2]
[367619898,1750877447544,-460.0,0.00017808,2]
[367619899,1750877447554,-453.56428964,0.00017808,2]
[367619900,1750877447563,-151.0,0.00017808,2]
[367619901,1750877447572,-460.0,0.00017808,2]
[367619902,1750877447582,-597.1,0.00017808,2]
[367619903,1750877447593,-460.0,0.00017808,2]
[367619904,1750877447603,-151.0,0.00017808,2]
[367619905,1750877447612,-331.9665454,0.00017808,2]
[367619906,1750877447622,-1064.04,0.00017808,2]
[367619907,1750877447632,-521.73,0.00017808,2]
[367619908,1750877447642,-2140.62,0.00017808,2]
[367619909,1750877447651,-595.07617992,0.00017808,2]
[367619910,1750877447660,-785.0,0.00017808,2]
[367619911,1750877447669,-447.92,0.00017808,2]
[367619912,1750877447678,-151.0,0.00017808,2]
[367619913,1750877447688,-4129.16,0.00017808,2]
[367619914,1750877447697,-339.25,0.00017808,2]
[367619915,1750877447706,-1999.61,0.00017808,2]
[367619916,1750877447715,-1521.43,0.00017808,2]
[367619917,1750877447725,-460.0,0.00017808,2]
[367619918,1750877447735,-151.0,0.00017808,2]
[367619919,1750877447744,-680.21,0.00017808,2]
[367619920,1750877447753,-508.55,0.00017808,2]
[367619921,1750877447763,-460.0,0.00017808,2]
[367619922,1750877447772,-915.74,0.00017808,2]
[367619923,1750877447782,-616.37,0.00017808,2]
[367619924,1750877447792,-460.0,0.00017808,2]
[367619925,1750877447801,-490.31,0.00017808,2]
[367619926,1750877447811,-566.11,0.00017808,2]
[367619927,1750877447820,-536.65,0.00017808,2]
[367619928,1750877447830,-1074.84,0.00017808,2]
[367619929,1750877447839,-460.0,0.00017808,2]
[367619930,1750877447849,-441.64,0.00017808,2]
[367619931,1750877447860,-1383.38,0.00017808,2]
[367619932,1750877447869,-1889.89,0.00017808,2]
[367619933,1750877447879,-460.0,0.00017808,2]
[367619934,1750877447888,-3898.37,0.00017808,2]
[367619935,1750877447897,-460.0,0.00017808,2]
[367619936,1750877447906,-460.0,0.00017808,2]
[367619937,1750877447916,-502.38,0.00017808,2]
[367619938,1750877447927,-460.0,0.00017808,2]
[367619939,1750877447936,-460.0,0.00017808,2]
[367619940,1750877447945,-460.0,0.00017808,2]
[367619941,1750877447954,-460.0,0.00017808,2]
[367619942,1750877447964,-554.76,0.00017808,2]
[367619943,1750877447974,-460.0,0.00017808,2]
[367619944,1750877447984,-1774.78,0.00017808,2]
[367619945,1750877447993,-919.71,0.00017808,2]
[367619946,1750877448002,-914.32,0.00017808,2]
[367619947,1750877448012,-1382.86,0.00017808,2]
[367619948,1750877448021,-151.0,0.00017808,2]
[367619949,1750877448030,-460.0,0.00017808,2]
[367619950,1750877448040,-1603.75,0.00017808,2]
[367619951,1750877448049,-1011.24,0.00017808,2]
[367619952,1750877448059,-1958.91,0.00017808,2]
[367619953,1750877448068,-460.0,0.00017808,2]
[367619954,1750877448078,-749.81,0.00017808,2]
[367619955,1750877448087,-527.1,0.00017808,2]
[367619956,1750877448097,-2383.52,0.00017808,2]
[367619957,1750877448111,-652.94,0.00017808,2]
[367619958,1750877448120,-465.06,0.00017808,2]
[367619959,1750877448130,-2133.96,0.00017808,2]
[367619960,1750877448140,-460.0,0.00017808,2]
[367619961,1750877448150,-460.0,0.00017808,2]
[367619962,1750877448160,-151.0,0.00017808,2]
[367619963,1750877448170,-460.0,0.00017808,2]
[367619964,1750877448180,-702.11,0.00017808,2]
[367619965,1750877448191,-518.51,0.00017808,2]
[367619966,1750877448202,-401.91755784,0.00017862,2]
[367619967,1750877448212,-637.0,0.00017879,2]
[367619968,1750877448221,-3367.71177203,0.000179,2]
[367619969,1750877448231,-637.0,0.00017923,2]
[367619970,1750877448241,-420.0,0.00017952,2]
[367619971,1750877448251,-226.945,0.00017982,2]
[367619972,1750877448260,-806.18908074,0.00018082,2]
[367619973,1750877448272,-151.0,0.00018082,2]
[367619974,1750877448282,-151.0,0.00018082,2]
[367619975,1750877448291,-151.0,0.00018082,2]
[367619976,1750877448301,-575.93,0.00018082,2]
[367619977,1750877448310,-460.0,0.00018082,2]
[367619978,1750877448319,-460.0,0.00018082,2]
[367619979,1750877448329,-151.0,0.00018082,2]
[367619980,1750877448339,-625.58,0.00018082,2]
[367619981,1750877448348,-460.0,0.00018082,2]
[367619982,1750877448360,-460.0,0.00018082,2]
[367619983,1750877448370,-151.0,0.00018082,2]
[367619984,1750877448380,-460.0,0.00018082,2]
[367619985,1750877448389,-460.0,0.00018082,2]
[367619986,1750877448399,-246.61,0.00018082,2]
[367619987,1750877448410,-460.0,0.00018082,2]
[367619988,1750877448420,-460.0,0.00018082,2]
[367619989,1750877448430,-795.72,0.00018082,2]
[367619990,1750877448440,-460.0,0.00018082,2]
[367619991,1750877448450,-233.92,0.00018082,2]
[367619992,1750877448459,-460.0,0.00018082,2]
[367619993,1750877448469,-460.0,0.00018082,2]
[367619994,1750877448479,-597.1,0.00018082,2]
[367619995,1750877448489,-460.0,0.00018082,2]
[367619996,1750877448498,-1064.04,0.00018082,2]
[367619997,1750877448508,-2140.62,0.00018082,2]
[367619998,1750877448518,-785.0,0.00018082,2]
[367619999,1750877448528,-4129.16,0.00018082,2]
[367620000,1750877448537,-1999.61,0.00018082,2]